{"text_format":"1","workbook":"xlsx","n_sheets":4,"sheets":["Produktionsanlæg","Distributionsanlæg","Fællesfunktionsanlæg","Drop downliste"],"not_rendered":{"charts":0,"images":0,"macros":1,"external_links":0,"defined_names":2,"comments":0,"pivot_tables":0},"unopened":[],"bounds":{"document_bytes":16777216,"sheet_cells":100000,"rows_first":2000,"rows_last":500,"rows_between":2000,"halvings":0,"cell_chars":16384,"cell_head_chars":4096},"cells_cut":0,"cells_raw":0,"read":"whole","date_system":"1900"}

{"sheet":"Produktionsanlæg","index":0,"n_rows":566,"n_cols":6,"rows_kept":566,"cut":false,"hidden":false,"merged":[[0,5,1,5],[0,0,1,0],[0,1,1,1],[0,2,1,2],[0,3,1,3],[0,4,1,4]]}
["Produktionsanlæg","Enhed","Standard-levetid","Samlet mængde per 31/12-2014","Samlet mængde per 31/12-2015","Bemærk-ninger"]
[]
["Renseanlæg 1"]
["Mindre renseanlæg"]
["Mindre renseanlæg < 5.000 PE uden mulighed for opdeling","PE",40,{"$f":"25165-270-1200-2145","v":21550},3600,"Gårslev=3600"]
["Mindre renseanlæg < 5.000 PE uden mulighed for opdeling","PE",40,0,2400,"Smidstrup=2400"]
["Mindre renseanlæg < 5.000 PE uden mulighed for opdeling","PE",40,0,3150,"Egtved=3150"]
["Mindre renseanlæg < 5.000 PE uden mulighed for opdeling","PE",40,0,4500,"Thyregod=4500"]
["Mindre renseanlæg < 5.000 PE uden mulighed for opdeling","PE",40,0,4500,"Jelling=4500"]
["Renseanlæg >= 5.000 PE, Vandbehandling"]
["Indløb med riste, Konstruktioner","PE",60,0,0]
["Indløb med riste, Mek/EL","PE",20,0,0]
["Indløb med riste, SRO","PE",10,0,0]
["Sand- og fedtfang, Kontruktioner","PE",60,0,0]
["Sand- og fedtfang, Mek/EL","PE",20,0,0]
["Sand- og fedtfang, SRO","PE",10,0,0]
["Forklaring, Konstruktioner","PE",60,0,0]
["Forklaring, Mek/EL","PE",20,0,0]
["Forklaring, SRO","PE",10,0,0]
["Beluftningstanke, Konstruktioner","PE",60,0,0]
["Beluftningstanke, Mek/EL","PE",20,0,0]
["Beluftningstanke, SRO","PE",10,0,0]
["Efterklaringstanke, Konstruktioner","PE",60,0,0]
["Efterklaringstanke, Mek/El","PE",20,0,0]
["Efterklaringstanke, SRO","PE",10,0,0]
["Efterbehandlingsanlæg (sandfilter), Konstruktioner","PE",60,0,0]
["Efterbehandlingsanlæg (sandfilter), Mek/EL","PE",20,0,0]
["Efterbehandlingsanlæg (sandfilter), SRO","PE",10,0,0]
["Renseanlæg >= 5.000 PE, Slambehandling"]
["Forafvanding, slam, Konstruktion","PE",60,0,0]
["Forafvanding, slam, Mek/EL","PE",20,0,0]
["Forafvanding, slam, SRO","PE",10,0,0]
["Rådnetanke, slam, Konstruktioner","PE",60,0,0]
["Rådnetanke, slam, Mek/EL","PE",20,0,0]
["Rådnetanke, slam, SRO","PE",10,0,0]
["Gasdisponering, Konstruktioner","PE",60,0,0]
["Gasdisponering, Mek/EL","PE",20,0,0]
["Gasdisponering, SRO","PE",10,0,0]
["Gasdisponering - elproduktionsanlæg, Konstruktioner","PE",60,0,0]
["Gasdisponering - elproduktionsanlæg, Mek/EL","PE",20,0,0]
["Gasdisponering - elproduktionsanlæg, SRO","PE",10,0,0]
["Slutafvanding, slam - lavteknologisk (slambede), Konstruktioner","PE",60,0,0]
["Slutafvanding, slam - lavteknologisk (slambede), Mek/EL","PE",20,0,0]
["Slutafvanding, slam - lavteknologisk (slambede), SRO","PE",10,0,0]
["Slutafvanding, slam - højteknologisk (centrifuger), Konstruktioner","PE",60,0,0]
["Slutafvanding, slam - højteknologisk (centrifuger), Mek/El","PE",20,0,0]
["Slutafvanding, slam - højteknologisk (centrifuger), SRO","PE",10,0,0]
["Renseanlæg >= 5.000 PE, Slamdisponering"]
["Slutdisponering, slam - lavteknologisk (slammineralisering), Konstruktioner","PE",60,0,0]
["Slutdisponering, slam - lavteknologisk (slammineralisering), Mek/EL","PE",20,0,0]
["Slutdisponering, slam - lavteknologisk (slammineralisering), SRO","PE",10,0,0]
["Slutdisponering, slam - højteknologisk (slamtørring), Konstruktioner","PE",60,0,0]
["Slutdisponering, slam - højteknologisk (slamtørring), Mek/EL","PE",20,0,0]
["Slutdisponering, slam - højteknologisk (slamtørring), SRO","PE",10,0,0]
["Slutdisponering, slam - højteknologisk (slamtørring og -forbrænding), Konstruktioner","PE",60,0,0]
["Slutdisponering, slam - højteknologisk (slamtørring og -forbrænding), Mek/EL","PE",20,0,0]
["Slutdisponering, slam - højteknologisk (slamtørring og -forbrænding), SRO","PE",10,0,0]
["Renseanlæg 2"]
["Mindre renseanlæg"]
["Mindre renseanlæg < 5.000 PE uden mulighed for opdeling","PE",40,{"$f":"1000","v":1000},0,"Langelund =nedlagt i 2015"]
["Renseanlæg >= 5.000 PE, Vandbehandling"]
["Indløb med riste, Konstruktioner","PE",60,0,0]
["Indløb med riste, Mek/EL","PE",20,0,0]
["Indløb med riste, SRO","PE",10,0,0]
["Sand- og fedtfang, Kontruktioner","PE",60,0,0]
["Sand- og fedtfang, Mek/EL","PE",20,0,0]
["Sand- og fedtfang, SRO","PE",10,0,0]
["Forklaring, Konstruktioner","PE",60,0,0]
["Forklaring, Mek/EL","PE",20,0,0]
["Forklaring, SRO","PE",10,0,0]
["Beluftningstanke, Konstruktioner","PE",60,0,0]
["Beluftningstanke, Mek/EL","PE",20,0,0]
["Beluftningstanke, SRO","PE",10,0,0]
["Efterklaringstanke, Konstruktioner","PE",60,0,0]
["Efterklaringstanke, Mek/El","PE",20,0,0]
["Efterklaringstanke, SRO","PE",10,0,0]
["Efterbehandlingsanlæg (sandfilter), Konstruktioner","PE",60,0,0]
["Efterbehandlingsanlæg (sandfilter), Mek/EL","PE",20,0,0]
["Efterbehandlingsanlæg (sandfilter), SRO","PE",10,0,0]
["Renseanlæg >= 5.000 PE, Slambehandling"]
["Forafvanding, slam, Konstruktion","PE",60,0,0]
["Forafvanding, slam, Mek/EL","PE",20,0,0]
["Forafvanding, slam, SRO","PE",10,0,0]
["Rådnetanke, slam, Konstruktioner","PE",60,0,0]
["Rådnetanke, slam, Mek/EL","PE",20,0,0]
["Rådnetanke, slam, SRO","PE",10,0,0]
["Gasdisponering, Konstruktioner","PE",60,0,0]
["Gasdisponering, Mek/EL","PE",20,0,0]
["Gasdisponering, SRO","PE",10,0,0]
["Gasdisponering - elproduktionsanlæg, Konstruktioner","PE",60,0,0]
["Gasdisponering - elproduktionsanlæg, Mek/EL","PE",20,0,0]
["Gasdisponering - elproduktionsanlæg, SRO","PE",10,0,0]
["Slutafvanding, slam - lavteknologisk (slambede), Konstruktioner","PE",60,0,0]
["Slutafvanding, slam - lavteknologisk (slambede), Mek/EL","PE",20,0,0]
["Slutafvanding, slam - lavteknologisk (slambede), SRO","PE",10,0,0]
["Slutafvanding, slam - højteknologisk (centrifuger), Konstruktioner","PE",60,0,0]
["Slutafvanding, slam - højteknologisk (centrifuger), Mek/El","PE",20,0,0]
["Slutafvanding, slam - højteknologisk (centrifuger), SRO","PE",10,0,0]
["Renseanlæg >= 5.000 PE, Slamdisponering"]
["Slutdisponering, slam - lavteknologisk (slammineralisering), Konstruktioner","PE",60,0,0]
["Slutdisponering, slam - lavteknologisk (slammineralisering), Mek/EL","PE",20,0,0]
["Slutdisponering, slam - lavteknologisk (slammineralisering), SRO","PE",10,0,0]
["Slutdisponering, slam - højteknologisk (slamtørring), Konstruktioner","PE",60,0,0]
["Slutdisponering, slam - højteknologisk (slamtørring), Mek/EL","PE",20,0,0]
["Slutdisponering, slam - højteknologisk (slamtørring), SRO","PE",10,0,0]
["Slutdisponering, slam - højteknologisk (slamtørring og -forbrænding), Konstruktioner","PE",60,0,0]
["Slutdisponering, slam - højteknologisk (slamtørring og -forbrænding), Mek/EL","PE",20,0,0]
["Slutdisponering, slam - højteknologisk (slamtørring og -forbrænding), SRO","PE",10,0,0]
["Renseanlæg 3"]
["Mindre renseanlæg"]
["Mindre renseanlæg < 5.000 PE uden mulighed for opdeling","PE",40,{"$f":"5","v":5},5]
["Renseanlæg >= 5.000 PE, Vandbehandling"]
["Indløb med riste, Konstruktioner","PE",60,0,0]
["Indløb med riste, Mek/EL","PE",20,0,0]
["Indløb med riste, SRO","PE",10,0,0]
["Sand- og fedtfang, Kontruktioner","PE",60,0,0]
["Sand- og fedtfang, Mek/EL","PE",20,0,0]
["Sand- og fedtfang, SRO","PE",10,0,0]
["Forklaring, Konstruktioner","PE",60,0,0]
["Forklaring, Mek/EL","PE",20,0,0]
["Forklaring, SRO","PE",10,0,0]
["Beluftningstanke, Konstruktioner","PE",60,0,0]
["Beluftningstanke, Mek/EL","PE",20,0,0]
["Beluftningstanke, SRO","PE",10,0,0]
["Efterklaringstanke, Konstruktioner","PE",60,0,0]
["Efterklaringstanke, Mek/El","PE",20,0,0]
["Efterklaringstanke, SRO","PE",10,0,0]
["Efterbehandlingsanlæg (sandfilter), Konstruktioner","PE",60,0,0]
["Efterbehandlingsanlæg (sandfilter), Mek/EL","PE",20,0,0]
["Efterbehandlingsanlæg (sandfilter), SRO","PE",10,0,0]
["Renseanlæg >= 5.000 PE, Slambehandling"]
["Forafvanding, slam, Konstruktion","PE",60,0,0]
["Forafvanding, slam, Mek/EL","PE",20,0,0]
["Forafvanding, slam, SRO","PE",10,0,0]
["Rådnetanke, slam, Konstruktioner","PE",60,0,0]
["Rådnetanke, slam, Mek/EL","PE",20,0,0]
["Rådnetanke, slam, SRO","PE",10,0,0]
["Gasdisponering, Konstruktioner","PE",60,0,0]
["Gasdisponering, Mek/EL","PE",20,0,0]
["Gasdisponering, SRO","PE",10,0,0]
["Gasdisponering - elproduktionsanlæg, Konstruktioner","PE",60,0,0]
["Gasdisponering - elproduktionsanlæg, Mek/EL","PE",20,0,0]
["Gasdisponering - elproduktionsanlæg, SRO","PE",10,0,0]
["Slutafvanding, slam - lavteknologisk (slambede), Konstruktioner","PE",60,0,0]
["Slutafvanding, slam - lavteknologisk (slambede), Mek/EL","PE",20,0,0]
["Slutafvanding, slam - lavteknologisk (slambede), SRO","PE",10,0,0]
["Slutafvanding, slam - højteknologisk (centrifuger), Konstruktioner","PE",60,0,0]
["Slutafvanding, slam - højteknologisk (centrifuger), Mek/El","PE",20,0,0]
["Slutafvanding, slam - højteknologisk (centrifuger), SRO","PE",10,0,0]
["Renseanlæg >= 5.000 PE, Slamdisponering"]
["Slutdisponering, slam - lavteknologisk (slammineralisering), Konstruktioner","PE",60,0,0]
["Slutdisponering, slam - lavteknologisk (slammineralisering), Mek/EL","PE",20,0,0]
["Slutdisponering, slam - lavteknologisk (slammineralisering), SRO","PE",10,0,0]
["Slutdisponering, slam - højteknologisk (slamtørring), Konstruktioner","PE",60,0,0]
["Slutdisponering, slam - højteknologisk (slamtørring), Mek/EL","PE",20,0,0]
["Slutdisponering, slam - højteknologisk (slamtørring), SRO","PE",10,0,0]
["Slutdisponering, slam - højteknologisk (slamtørring og -forbrænding), Konstruktioner","PE",60,0,0]
["Slutdisponering, slam - højteknologisk (slamtørring og -forbrænding), Mek/EL","PE",20,0,0]
["Slutdisponering, slam - højteknologisk (slamtørring og -forbrænding), SRO","PE",10,0,0]
["Renseanlæg 4"]
["Mindre renseanlæg"]
["Mindre renseanlæg < 5.000 PE uden mulighed for opdeling","PE",40,{"$f":"5","v":5},5]
["Renseanlæg >= 5.000 PE, Vandbehandling"]
["Indløb med riste, Konstruktioner","PE",60,0,0]
["Indløb med riste, Mek/EL","PE",20,0,0]
["Indløb med riste, SRO","PE",10,0,0]
["Sand- og fedtfang, Kontruktioner","PE",60,0,0]
["Sand- og fedtfang, Mek/EL","PE",20,0,0]
["Sand- og fedtfang, SRO","PE",10,0,0]
["Forklaring, Konstruktioner","PE",60,0,0]
["Forklaring, Mek/EL","PE",20,0,0]
["Forklaring, SRO","PE",10,0,0]
["Beluftningstanke, Konstruktioner","PE",60,0,0]
["Beluftningstanke, Mek/EL","PE",20,0,0]
["Beluftningstanke, SRO","PE",10,0,0]
["Efterklaringstanke, Konstruktioner","PE",60,0,0]
["Efterklaringstanke, Mek/El","PE",20,0,0]
["Efterklaringstanke, SRO","PE",10,0,0]
["Efterbehandlingsanlæg (sandfilter), Konstruktioner","PE",60,0,0]
["Efterbehandlingsanlæg (sandfilter), Mek/EL","PE",20,0,0]
["Efterbehandlingsanlæg (sandfilter), SRO","PE",10,0,0]
["Renseanlæg >= 5.000 PE, Slambehandling"]
["Forafvanding, slam, Konstruktion","PE",60,0,0]
["Forafvanding, slam, Mek/EL","PE",20,0,0]
["Forafvanding, slam, SRO","PE",10,0,0]
["Rådnetanke, slam, Konstruktioner","PE",60,0,0]
["Rådnetanke, slam, Mek/EL","PE",20,0,0]
["Rådnetanke, slam, SRO","PE",10,0,0]
["Gasdisponering, Konstruktioner","PE",60,0,0]
["Gasdisponering, Mek/EL","PE",20,0,0]
["Gasdisponering, SRO","PE",10,0,0]
["Gasdisponering - elproduktionsanlæg, Konstruktioner","PE",60,0,0]
["Gasdisponering - elproduktionsanlæg, Mek/EL","PE",20,0,0]
["Gasdisponering - elproduktionsanlæg, SRO","PE",10,0,0]
["Slutafvanding, slam - lavteknologisk (slambede), Konstruktioner","PE",60,0,0]
["Slutafvanding, slam - lavteknologisk (slambede), Mek/EL","PE",20,0,0]
["Slutafvanding, slam - lavteknologisk (slambede), SRO","PE",10,0,0]
["Slutafvanding, slam - højteknologisk (centrifuger), Konstruktioner","PE",60,0,0]
["Slutafvanding, slam - højteknologisk (centrifuger), Mek/El","PE",20,0,0]
["Slutafvanding, slam - højteknologisk (centrifuger), SRO","PE",10,0,0]
["Renseanlæg >= 5.000 PE, Slamdisponering"]
["Slutdisponering, slam - lavteknologisk (slammineralisering), Konstruktioner","PE",60,0,0]
["Slutdisponering, slam - lavteknologisk (slammineralisering), Mek/EL","PE",20,0,0]
["Slutdisponering, slam - lavteknologisk (slammineralisering), SRO","PE",10,0,0]
["Slutdisponering, slam - højteknologisk (slamtørring), Konstruktioner","PE",60,0,0]
["Slutdisponering, slam - højteknologisk (slamtørring), Mek/EL","PE",20,0,0]
["Slutdisponering, slam - højteknologisk (slamtørring), SRO","PE",10,0,0]
["Slutdisponering, slam - højteknologisk (slamtørring og -forbrænding), Konstruktioner","PE",60,0,0]
["Slutdisponering, slam - højteknologisk (slamtørring og -forbrænding), Mek/EL","PE",20,0,0]
["Slutdisponering, slam - højteknologisk (slamtørring og -forbrænding), SRO","PE",10,0,0]
["Renseanlæg 5"]
["Mindre renseanlæg"]
["Mindre renseanlæg < 5.000 PE uden mulighed for opdeling","PE",40,5,5,"Vejle"]
["Renseanlæg >= 5.000 PE, Vandbehandling"]
["Indløb med riste, Konstruktioner","PE",60,170000,170000]
["Indløb med riste, Mek/EL","PE",20,170000,170000]
["Indløb med riste, SRO","PE",10,170000,170000]
["Sand- og fedtfang, Kontruktioner","PE",60,170000,170000]
["Sand- og fedtfang, Mek/EL","PE",20,170000,170000]
["Sand- og fedtfang, SRO","PE",10,170000,170000]
["Forklaring, Konstruktioner","PE",60,170000,170000]
["Forklaring, Mek/EL","PE",20,170000,170000]
["Forklaring, SRO","PE",10,170000,170000]
["Beluftningstanke, Konstruktioner","PE",60,170000,170000]
["Beluftningstanke, Mek/EL","PE",20,170000,170000]
["Beluftningstanke, SRO","PE",10,170000,170000]
["Efterklaringstanke, Konstruktioner","PE",60,170000,170000]
["Efterklaringstanke, Mek/El","PE",20,170000,170000]
["Efterklaringstanke, SRO","PE",10,170000,170000]
["Efterbehandlingsanlæg (sandfilter), Konstruktioner","PE",60,170000,170000,"UV-anlæg"]
["Efterbehandlingsanlæg (sandfilter), Mek/EL","PE",20,170000,170000,"UV-anlæg"]
["Efterbehandlingsanlæg (sandfilter), SRO","PE",10,170000,170000,"UV-anlæg"]
["Renseanlæg >= 5.000 PE, Slambehandling"]
["Forafvanding, slam, Konstruktion","PE",60,170000,170000]
["Forafvanding, slam, Mek/EL","PE",20,170000,170000]
["Forafvanding, slam, SRO","PE",10,170000,170000]
["Rådnetanke, slam, Konstruktioner","PE",60,170000,170000]
["Rådnetanke, slam, Mek/EL","PE",20,170000,170000]
["Rådnetanke, slam, SRO","PE",10,170000,170000]
["Gasdisponering, Konstruktioner","PE",60,170000,170000]
["Gasdisponering, Mek/EL","PE",20,170000,170000]
["Gasdisponering, SRO","PE",10,170000,170000]
["Gasdisponering - elproduktionsanlæg, Konstruktioner","PE",60,170000,170000]
["Gasdisponering - elproduktionsanlæg, Mek/EL","PE",20,170000,170000]
["Gasdisponering - elproduktionsanlæg, SRO","PE",10,170000,170000]
["Slutafvanding, slam - lavteknologisk (slambede), Konstruktioner","PE",60,0,170000]
["Slutafvanding, slam - lavteknologisk (slambede), Mek/EL","PE",20,0,170000]
["Slutafvanding, slam - lavteknologisk (slambede), SRO","PE",10,0,170000]
["Slutafvanding, slam - højteknologisk (centrifuger), Konstruktioner","PE",60,170000,170000]
["Slutafvanding, slam - højteknologisk (centrifuger), Mek/El","PE",20,170000,170000]
["Slutafvanding, slam - højteknologisk (centrifuger), SRO","PE",10,170000,170000]
["Renseanlæg >= 5.000 PE, Slamdisponering"]
["Slutdisponering, slam - lavteknologisk (slammineralisering), Konstruktioner","PE",60,0,0]
["Slutdisponering, slam - lavteknologisk (slammineralisering), Mek/EL","PE",20,0,0]
["Slutdisponering, slam - lavteknologisk (slammineralisering), SRO","PE",10,0,0]
["Slutdisponering, slam - højteknologisk (slamtørring), Konstruktioner","PE",60,0,0]
["Slutdisponering, slam - højteknologisk (slamtørring), Mek/EL","PE",20,0,0]
["Slutdisponering, slam - højteknologisk (slamtørring), SRO","PE",10,0,0]
["Slutdisponering, slam - højteknologisk (slamtørring og -forbrænding), Konstruktioner","PE",60,0,0]
["Slutdisponering, slam - højteknologisk (slamtørring og -forbrænding), Mek/EL","PE",20,0,0]
["Slutdisponering, slam - højteknologisk (slamtørring og -forbrænding), SRO","PE",10,0,0]
["Renseanlæg 6"]
["Mindre renseanlæg"]
["Mindre renseanlæg < 5.000 PE uden mulighed for opdeling","PE",40,{"$f":"5","v":5},{"$f":"5","v":5},"Brejning"]
["Renseanlæg >= 5.000 PE, Vandbehandling"]
["Indløb med riste, Konstruktioner","PE",60,13700,13700]
["Indløb med riste, Mek/EL","PE",20,13700,13700]
["Indløb med riste, SRO","PE",10,13700,13700]
["Sand- og fedtfang, Kontruktioner","PE",60,13700,13700]
["Sand- og fedtfang, Mek/EL","PE",20,13700,13700]
["Sand- og fedtfang, SRO","PE",10,13700,13700]
["Forklaring, Konstruktioner","PE",60,0,0]
["Forklaring, Mek/EL","PE",20,0,0]
["Forklaring, SRO","PE",10,0,0]
["Beluftningstanke, Konstruktioner","PE",60,13700,13700]
["Beluftningstanke, Mek/EL","PE",20,13700,13700]
["Beluftningstanke, SRO","PE",10,13700,13700]
["Efterklaringstanke, Konstruktioner","PE",60,13700,13700]
["Efterklaringstanke, Mek/El","PE",20,13700,13700]
["Efterklaringstanke, SRO","PE",10,13700,13700]
["Efterbehandlingsanlæg (sandfilter), Konstruktioner","PE",60,0,0]
["Efterbehandlingsanlæg (sandfilter), Mek/EL","PE",20,0,0]
["Efterbehandlingsanlæg (sandfilter), SRO","PE",10,0,0]
["Renseanlæg >= 5.000 PE, Slambehandling"]
["Forafvanding, slam, Konstruktion","PE",60,0,0]
["Forafvanding, slam, Mek/EL","PE",20,0,0]
["Forafvanding, slam, SRO","PE",10,0,0]
["Rådnetanke, slam, Konstruktioner","PE",60,0,0]
["Rådnetanke, slam, Mek/EL","PE",20,0,0]
["Rådnetanke, slam, SRO","PE",10,0,0]
["Gasdisponering, Konstruktioner","PE",60,0,0]
["Gasdisponering, Mek/EL","PE",20,0,0]
["Gasdisponering, SRO","PE",10,0,0]
["Gasdisponering - elproduktionsanlæg, Konstruktioner","PE",60,0,0]
["Gasdisponering - elproduktionsanlæg, Mek/EL","PE",20,0,0]
["Gasdisponering - elproduktionsanlæg, SRO","PE",10,0,0]
["Slutafvanding, slam - lavteknologisk (slambede), Konstruktioner","PE",60,0,0]
["Slutafvanding, slam - lavteknologisk (slambede), Mek/EL","PE",20,0,13700]
["Slutafvanding, slam - lavteknologisk (slambede), SRO","PE",10,0,13700]
["Slutafvanding, slam - højteknologisk (centrifuger), Konstruktioner","PE",60,13700,13700]
["Slutafvanding, slam - højteknologisk (centrifuger), Mek/El","PE",20,13700,13700]
["Slutafvanding, slam - højteknologisk (centrifuger), SRO","PE",10,13700,13700]
["Renseanlæg >= 5.000 PE, Slamdisponering"]
["Slutdisponering, slam - lavteknologisk (slammineralisering), Konstruktioner","PE",60,0,0]
["Slutdisponering, slam - lavteknologisk (slammineralisering), Mek/EL","PE",20,0,0]
["Slutdisponering, slam - lavteknologisk (slammineralisering), SRO","PE",10,0,0]
["Slutdisponering, slam - højteknologisk (slamtørring), Konstruktioner","PE",60,0,0]
["Slutdisponering, slam - højteknologisk (slamtørring), Mek/EL","PE",20,0,0]
["Slutdisponering, slam - højteknologisk (slamtørring), SRO","PE",10,0,0]
["Slutdisponering, slam - højteknologisk (slamtørring og -forbrænding), Konstruktioner","PE",60,0,0]
["Slutdisponering, slam - højteknologisk (slamtørring og -forbrænding), Mek/EL","PE",20,0,0]
["Slutdisponering, slam - højteknologisk (slamtørring og -forbrænding), SRO","PE",10,0,0]
["Renseanlæg 7"]
["Mindre renseanlæg"]
["Mindre renseanlæg < 5.000 PE uden mulighed for opdeling","PE",40,null,5,"Haraldskær"]
["Renseanlæg >= 5.000 PE, Vandbehandling"]
["Indløb med riste, Konstruktioner","PE",60,24000,24000]
["Indløb med riste, Mek/EL","PE",20,24000,24000]
["Indløb med riste, SRO","PE",10,24000,24000]
["Sand- og fedtfang, Kontruktioner","PE",60,24000,24000]
["Sand- og fedtfang, Mek/EL","PE",20,24000,24000]
["Sand- og fedtfang, SRO","PE",10,24000,24000]
["Forklaring, Konstruktioner","PE",60,0,0]
["Forklaring, Mek/EL","PE",20,0,0]
["Forklaring, SRO","PE",10,0,0]
["Beluftningstanke, Konstruktioner","PE",60,24000,24000]
["Beluftningstanke, Mek/EL","PE",20,24000,24000]
["Beluftningstanke, SRO","PE",10,24000,24000]
["Efterklaringstanke, Konstruktioner","PE",60,24000,24000]
["Efterklaringstanke, Mek/El","PE",20,24000,24000]
["Efterklaringstanke, SRO","PE",10,24000,24000]
["Efterbehandlingsanlæg (sandfilter), Konstruktioner","PE",60,0,0]
["Efterbehandlingsanlæg (sandfilter), Mek/EL","PE",20,0,0]
["Efterbehandlingsanlæg (sandfilter), SRO","PE",10,0,0]
["Renseanlæg >= 5.000 PE, Slambehandling"]
["Forafvanding, slam, Konstruktion","PE",60,0,0]
["Forafvanding, slam, Mek/EL","PE",20,0,0]
["Forafvanding, slam, SRO","PE",10,0,0]
["Rådnetanke, slam, Konstruktioner","PE",60,0,0]
["Rådnetanke, slam, Mek/EL","PE",20,0,0]
["Rådnetanke, slam, SRO","PE",10,0,0]
["Gasdisponering, Konstruktioner","PE",60,0,0]
["Gasdisponering, Mek/EL","PE",20,0,0]
["Gasdisponering, SRO","PE",10,0,0]
["Gasdisponering - elproduktionsanlæg, Konstruktioner","PE",60,0,0]
["Gasdisponering - elproduktionsanlæg, Mek/EL","PE",20,0,0]
["Gasdisponering - elproduktionsanlæg, SRO","PE",10,0,0]
["Slutafvanding, slam - lavteknologisk (slambede), Konstruktioner","PE",60,0,0]
["Slutafvanding, slam - lavteknologisk (slambede), Mek/EL","PE",20,0,0]
["Slutafvanding, slam - lavteknologisk (slambede), SRO","PE",10,0,0]
["Slutafvanding, slam - højteknologisk (centrifuger), Konstruktioner","PE",60,24000,24000]
["Slutafvanding, slam - højteknologisk (centrifuger), Mek/El","PE",20,24000,24000]
["Slutafvanding, slam - højteknologisk (centrifuger), SRO","PE",10,24000,24000]
["Renseanlæg >= 5.000 PE, Slamdisponering"]
["Slutdisponering, slam - lavteknologisk (slammineralisering), Konstruktioner","PE",60,0,0]
["Slutdisponering, slam - lavteknologisk (slammineralisering), Mek/EL","PE",20,0,0]
["Slutdisponering, slam - lavteknologisk (slammineralisering), SRO","PE",10,0,0]
["Slutdisponering, slam - højteknologisk (slamtørring), Konstruktioner","PE",60,0,0]
["Slutdisponering, slam - højteknologisk (slamtørring), Mek/EL","PE",20,0,0]
["Slutdisponering, slam - højteknologisk (slamtørring), SRO","PE",10,0,0]
["Slutdisponering, slam - højteknologisk (slamtørring og -forbrænding), Konstruktioner","PE",60,0,0]
["Slutdisponering, slam - højteknologisk (slamtørring og -forbrænding), Mek/EL","PE",20,0,0]
["Slutdisponering, slam - højteknologisk (slamtørring og -forbrænding), SRO","PE",10,0,0]
["Renseanlæg 8"]
["Mindre renseanlæg"]
["Mindre renseanlæg < 5.000 PE uden mulighed for opdeling","PE",40,5,5,"Give"]
["Renseanlæg >= 5.000 PE, Vandbehandling"]
["Indløb med riste, Konstruktioner","PE",60,42000,42000]
["Indløb med riste, Mek/EL","PE",20,42000,42000]
["Indløb med riste, SRO","PE",10,42000,42000]
["Sand- og fedtfang, Kontruktioner","PE",60,42000,42000]
["Sand- og fedtfang, Mek/EL","PE",20,42000,42000]
["Sand- og fedtfang, SRO","PE",10,42000,42000]
["Forklaring, Konstruktioner","PE",60,0,0]
["Forklaring, Mek/EL","PE",20,0,0]
["Forklaring, SRO","PE",10,0,0]
["Beluftningstanke, Konstruktioner","PE",60,42000,42000]
["Beluftningstanke, Mek/EL","PE",20,42000,42000]
["Beluftningstanke, SRO","PE",10,42000,42000]
["Efterklaringstanke, Konstruktioner","PE",60,42000,42000]
["Efterklaringstanke, Mek/El","PE",20,42000,42000]
["Efterklaringstanke, SRO","PE",10,42000,42000]
["Efterbehandlingsanlæg (sandfilter), Konstruktioner","PE",60,0,0]
["Efterbehandlingsanlæg (sandfilter), Mek/EL","PE",20,0,0]
["Efterbehandlingsanlæg (sandfilter), SRO","PE",10,0,0]
["Renseanlæg >= 5.000 PE, Slambehandling"]
["Forafvanding, slam, Konstruktion","PE",60,0,0]
["Forafvanding, slam, Mek/EL","PE",20,0,0]
["Forafvanding, slam, SRO","PE",10,0,0]
["Rådnetanke, slam, Konstruktioner","PE",60,0,0]
["Rådnetanke, slam, Mek/EL","PE",20,0,0]
["Rådnetanke, slam, SRO","PE",10,0,0]
["Gasdisponering, Konstruktioner","PE",60,0,0]
["Gasdisponering, Mek/EL","PE",20,0,0]
["Gasdisponering, SRO","PE",10,0,0]
["Gasdisponering - elproduktionsanlæg, Konstruktioner","PE",60,0,0]
["Gasdisponering - elproduktionsanlæg, Mek/EL","PE",20,0,0]
["Gasdisponering - elproduktionsanlæg, SRO","PE",10,0,0]
["Slutafvanding, slam - lavteknologisk (slambede), Konstruktioner","PE",60,0,0]
["Slutafvanding, slam - lavteknologisk (slambede), Mek/EL","PE",20,0,0]
["Slutafvanding, slam - lavteknologisk (slambede), SRO","PE",10,0,0]
["Slutafvanding, slam - højteknologisk (centrifuger), Konstruktioner","PE",60,42500,42500]
["Slutafvanding, slam - højteknologisk (centrifuger), Mek/El","PE",20,42500,42500]
["Slutafvanding, slam - højteknologisk (centrifuger), SRO","PE",10,42500,42500]
["Renseanlæg >= 5.000 PE, Slamdisponering"]
["Slutdisponering, slam - lavteknologisk (slammineralisering), Konstruktioner","PE",60,0,0]
["Slutdisponering, slam - lavteknologisk (slammineralisering), Mek/EL","PE",20,0,0]
["Slutdisponering, slam - lavteknologisk (slammineralisering), SRO","PE",10,0,0]
["Slutdisponering, slam - højteknologisk (slamtørring), Konstruktioner","PE",60,0,0]
["Slutdisponering, slam - højteknologisk (slamtørring), Mek/EL","PE",20,0,0]
["Slutdisponering, slam - højteknologisk (slamtørring), SRO","PE",10,0,0]
["Slutdisponering, slam - højteknologisk (slamtørring og -forbrænding), Konstruktioner","PE",60,0,0]
["Slutdisponering, slam - højteknologisk (slamtørring og -forbrænding), Mek/EL","PE",20,0,0]
["Slutdisponering, slam - højteknologisk (slamtørring og -forbrænding), SRO","PE",10,0,0]
["Renseanlæg 9"]
["Mindre renseanlæg"]
["Mindre renseanlæg < 5.000 PE uden mulighed for opdeling","PE",40,5,5,"Farre= nedlagt i 2015"]
["Renseanlæg >= 5.000 PE, Vandbehandling"]
["Indløb med riste, Konstruktioner","PE",60,14000,0]
["Indløb med riste, Mek/EL","PE",20,14000,0]
["Indløb med riste, SRO","PE",10,14000,0]
["Sand- og fedtfang, Kontruktioner","PE",60,14000,0]
["Sand- og fedtfang, Mek/EL","PE",20,14000,0]
["Sand- og fedtfang, SRO","PE",10,14000,0]
["Forklaring, Konstruktioner","PE",60,14000,0]
["Forklaring, Mek/EL","PE",20,14000,0]
["Forklaring, SRO","PE",10,14000,0]
["Beluftningstanke, Konstruktioner","PE",60,14000,0]
["Beluftningstanke, Mek/EL","PE",20,14000,0]
["Beluftningstanke, SRO","PE",10,14000,0]
["Efterklaringstanke, Konstruktioner","PE",60,14000,0]
["Efterklaringstanke, Mek/El","PE",20,14000,0]
["Efterklaringstanke, SRO","PE",10,14000,0]
["Efterbehandlingsanlæg (sandfilter), Konstruktioner","PE",60,14000,0]
["Efterbehandlingsanlæg (sandfilter), Mek/EL","PE",20,0,0]
["Efterbehandlingsanlæg (sandfilter), SRO","PE",10,0,0]
["Renseanlæg >= 5.000 PE, Slambehandling"]
["Forafvanding, slam, Konstruktion","PE",60,0,0]
["Forafvanding, slam, Mek/EL","PE",20,0,0]
["Forafvanding, slam, SRO","PE",10,0,0]
["Rådnetanke, slam, Konstruktioner","PE",60,0,0]
["Rådnetanke, slam, Mek/EL","PE",20,0,0]
["Rådnetanke, slam, SRO","PE",10,0,0]
["Gasdisponering, Konstruktioner","PE",60,0,0]
["Gasdisponering, Mek/EL","PE",20,0,0]
["Gasdisponering, SRO","PE",10,0,0]
["Gasdisponering - elproduktionsanlæg, Konstruktioner","PE",60,0,0]
["Gasdisponering - elproduktionsanlæg, Mek/EL","PE",20,0,0]
["Gasdisponering - elproduktionsanlæg, SRO","PE",10,0,0]
["Slutafvanding, slam - lavteknologisk (slambede), Konstruktioner","PE",60,0,0]
["Slutafvanding, slam - lavteknologisk (slambede), Mek/EL","PE",20,0,0]
["Slutafvanding, slam - lavteknologisk (slambede), SRO","PE",10,0,0]
["Slutafvanding, slam - højteknologisk (centrifuger), Konstruktioner","PE",60,0,0]
["Slutafvanding, slam - højteknologisk (centrifuger), Mek/El","PE",20,0,0]
["Slutafvanding, slam - højteknologisk (centrifuger), SRO","PE",10,0,0]
["Renseanlæg >= 5.000 PE, Slamdisponering"]
["Slutdisponering, slam - lavteknologisk (slammineralisering), Konstruktioner","PE",60,0,0]
["Slutdisponering, slam - lavteknologisk (slammineralisering), Mek/EL","PE",20,0,0]
["Slutdisponering, slam - lavteknologisk (slammineralisering), SRO","PE",10,0,0]
["Slutdisponering, slam - højteknologisk (slamtørring), Konstruktioner","PE",60,0,0]
["Slutdisponering, slam - højteknologisk (slamtørring), Mek/EL","PE",20,0,0]
["Slutdisponering, slam - højteknologisk (slamtørring), SRO","PE",10,0,0]
["Slutdisponering, slam - højteknologisk (slamtørring og -forbrænding), Konstruktioner","PE",60,0,0]
["Slutdisponering, slam - højteknologisk (slamtørring og -forbrænding), Mek/EL","PE",20,0,0]
["Slutdisponering, slam - højteknologisk (slamtørring og -forbrænding), SRO","PE",10,0,0]
["Renseanlæg 10"]
["Mindre renseanlæg"]
["Mindre renseanlæg < 5.000 PE uden mulighed for opdeling","PE",40,5,5]
["Renseanlæg >= 5.000 PE, Vandbehandling"]
["Indløb med riste, Konstruktioner","PE",60,0,0]
["Indløb med riste, Mek/EL","PE",20,0,0]
["Indløb med riste, SRO","PE",10,0,0]
["Sand- og fedtfang, Kontruktioner","PE",60,0,0]
["Sand- og fedtfang, Mek/EL","PE",20,0,0]
["Sand- og fedtfang, SRO","PE",10,0,0]
["Forklaring, Konstruktioner","PE",60,0,0]
["Forklaring, Mek/EL","PE",20,0,0]
["Forklaring, SRO","PE",10,0,0]
["Beluftningstanke, Konstruktioner","PE",60,0,0]
["Beluftningstanke, Mek/EL","PE",20,0,0]
["Beluftningstanke, SRO","PE",10,0,0]
["Efterklaringstanke, Konstruktioner","PE",60,0,0]
["Efterklaringstanke, Mek/El","PE",20,0,0]
["Efterklaringstanke, SRO","PE",10,0,0]
["Efterbehandlingsanlæg (sandfilter), Konstruktioner","PE",60,0,0]
["Efterbehandlingsanlæg (sandfilter), Mek/EL","PE",20,0,0]
["Efterbehandlingsanlæg (sandfilter), SRO","PE",10,0,0]
["Renseanlæg >= 5.000 PE, Slambehandling"]
["Forafvanding, slam, Konstruktion","PE",60,0,0]
["Forafvanding, slam, Mek/EL","PE",20,0,0]
["Forafvanding, slam, SRO","PE",10,0,0]
["Rådnetanke, slam, Konstruktioner","PE",60,0,0]
["Rådnetanke, slam, Mek/EL","PE",20,0,0]
["Rådnetanke, slam, SRO","PE",10,0,0]
["Gasdisponering, Konstruktioner","PE",60,0,0]
["Gasdisponering, Mek/EL","PE",20,0,0]
["Gasdisponering, SRO","PE",10,0,0]
["Gasdisponering - elproduktionsanlæg, Konstruktioner","PE",60,0,0]
["Gasdisponering - elproduktionsanlæg, Mek/EL","PE",20,0,0]
["Gasdisponering - elproduktionsanlæg, SRO","PE",10,0,0]
["Slutafvanding, slam - lavteknologisk (slambede), Konstruktioner","PE",60,0,0]
["Slutafvanding, slam - lavteknologisk (slambede), Mek/EL","PE",20,0,0]
["Slutafvanding, slam - lavteknologisk (slambede), SRO","PE",10,0,0]
["Slutafvanding, slam - højteknologisk (centrifuger), Konstruktioner","PE",60,0,0]
["Slutafvanding, slam - højteknologisk (centrifuger), Mek/El","PE",20,0,0]
["Slutafvanding, slam - højteknologisk (centrifuger), SRO","PE",10,0,0]
["Renseanlæg >= 5.000 PE, Slamdisponering"]
["Slutdisponering, slam - lavteknologisk (slammineralisering), Konstruktioner","PE",60,0,0]
["Slutdisponering, slam - lavteknologisk (slammineralisering), Mek/EL","PE",20,0,0]
["Slutdisponering, slam - lavteknologisk (slammineralisering), SRO","PE",10,0,0]
["Slutdisponering, slam - højteknologisk (slamtørring), Konstruktioner","PE",60,0,0]
["Slutdisponering, slam - højteknologisk (slamtørring), Mek/EL","PE",20,0,0]
["Slutdisponering, slam - højteknologisk (slamtørring), SRO","PE",10,0,0]
["Slutdisponering, slam - højteknologisk (slamtørring og -forbrænding), Konstruktioner","PE",60,0,0]
["Slutdisponering, slam - højteknologisk (slamtørring og -forbrænding), Mek/EL","PE",20,0,0]
["Slutdisponering, slam - højteknologisk (slamtørring og -forbrænding), SRO","PE",10,0,0]
["Mindre renseanlæg"]
["Mindre renseanlæg < 5.000 PE uden mulighed for opdeling","PE",40,{"$f":"5+5+5+270+175","v":460},{"$f":"5+5+5+270+175+5","v":465},"Minirens 170PE i tilgang"]
["Renseanlæg >= 5.000 PE, Vandbehandling"]
["Indløb med riste, Konstruktioner","PE",60,0,0]
["Indløb med riste, Mek/EL","PE",20,0,0]
["Indløb med riste, SRO","PE",10,0,0]
["Sand- og fedtfang, Kontruktioner","PE",60,0,0]
["Sand- og fedtfang, Mek/EL","PE",20,0,0]
["Sand- og fedtfang, SRO","PE",10,0,0]
["Forklaring, Konstruktioner","PE",60,0,0]
["Forklaring, Mek/EL","PE",20,0,0]
["Forklaring, SRO","PE",10,0,0]
["Beluftningstanke, Konstruktioner","PE",60,0,0]
["Beluftningstanke, Mek/EL","PE",20,0,0]
["Beluftningstanke, SRO","PE",10,0,0]
["Efterklaringstanke, Konstruktioner","PE",60,0,0]
["Efterklaringstanke, Mek/El","PE",20,0,0]
["Efterklaringstanke, SRO","PE",10,0,0]
["Efterbehandlingsanlæg (sandfilter), Konstruktioner","PE",60,0,0]
["Efterbehandlingsanlæg (sandfilter), Mek/EL","PE",20,0,0]
["Efterbehandlingsanlæg (sandfilter), SRO","PE",10,0,0]
["Renseanlæg >= 5.000 PE, Slambehandling"]
["Forafvanding, slam, Konstruktion","PE",60,0,0]
["Forafvanding, slam, Mek/EL","PE",20,0,0]
["Forafvanding, slam, SRO","PE",10,0,0]
["Rådnetanke, slam, Konstruktioner","PE",60,0,0]
["Rådnetanke, slam, Mek/EL","PE",20,0,0]
["Rådnetanke, slam, SRO","PE",10,0,0]
["Gasdisponering, Konstruktioner","PE",60,0,0]
["Gasdisponering, Mek/EL","PE",20,0,0]
["Gasdisponering, SRO","PE",10,0,0]
["Gasdisponering - elproduktionsanlæg, Konstruktioner","PE",60,0,0]
["Gasdisponering - elproduktionsanlæg, Mek/EL","PE",20,0,0]
["Gasdisponering - elproduktionsanlæg, SRO","PE",10,0,0]
["Slutafvanding, slam - lavteknologisk (slambede), Konstruktioner","PE",60,0,0]
["Slutafvanding, slam - lavteknologisk (slambede), Mek/EL","PE",20,0,0]
["Slutafvanding, slam - lavteknologisk (slambede), SRO","PE",10,0,0]
["Slutafvanding, slam - højteknologisk (centrifuger), Konstruktioner","PE",60,0,0]
["Slutafvanding, slam - højteknologisk (centrifuger), Mek/El","PE",20,0,0]
["Slutafvanding, slam - højteknologisk (centrifuger), SRO","PE",10,0,0]
["Renseanlæg >= 5.000 PE, Slamdisponering"]
["Slutdisponering, slam - lavteknologisk (slammineralisering), Konstruktioner","PE",60,0,0]
["Slutdisponering, slam - lavteknologisk (slammineralisering), Mek/EL","PE",20,0,0]
["Slutdisponering, slam - lavteknologisk (slammineralisering), SRO","PE",10,0,0]
["Slutdisponering, slam - højteknologisk (slamtørring), Konstruktioner","PE",60,0,0]
["Slutdisponering, slam - højteknologisk (slamtørring), Mek/EL","PE",20,0,0]
["Slutdisponering, slam - højteknologisk (slamtørring), SRO","PE",10,0,0]
["Slutdisponering, slam - højteknologisk (slamtørring og -forbrænding), Konstruktioner","PE",60,0,0]
["Slutdisponering, slam - højteknologisk (slamtørring og -forbrænding), Mek/EL","PE",20,0,0]
["Slutdisponering, slam - højteknologisk (slamtørring og -forbrænding), SRO","PE",10,0,0]

{"sheet":"Distributionsanlæg","index":1,"n_rows":322,"n_cols":6,"rows_kept":322,"cut":false,"hidden":false,"merged":[[0,5,1,5],[0,0,1,0],[0,1,1,1],[0,2,1,2],[0,3,1,3],[0,4,1,4]]}
["Distributionsanlæg","Enhed","Standard-levetid","Samlet mængde per 31/12-2014","Samlet mængde per 31/12-2015","Bemærk-ninger"]
[]
["Ledningsnet - Land"]
["Ledningsnet ≤ Ø 200 mm ","meter",75,{"$f":"(290082.38+40854.46+(D61*5))*1.029616","v":387317.69329344004},421788.9679965562,"NT 40,9k"]
["Ø 200 mm < Ledningsnet ≤ Ø 500 mm ","meter",75,{"$f":"(88263.93+1632.94)*1.029616","v":92559.255701920003},100797.02945939088,"NT1,6k"]
["Ø 500 mm < Ledningsnet ≤ Ø 800 mm","meter",75,{"$f":"(10947.9+468.16)*1.029616","v":11754.15803296},12800.278097893441,"NT 0,5K"]
["Ø 800 mm < Ledningsnet ≤ Ø 1000 mm","meter",75,{"$f":"4183.51*1.029616","v":4307.4088321600002},4690.7682182222397,"NT 0"]
["Ø 1000 mm < Ledningsnet ≤ Ø 1200 mm","meter",75,{"$f":"1305.52*1.029616","v":1344.1842803200002},1463.8166812684801,"NT 0"]
["Ø 1200 mm < Ledningsnet ≤ Ø 1600 mm","meter",75,{"$f":"1005.64*1.029616","v":1035.4230342400001},1127.57568428736,"NT 0"]
["Ledningsnet > Ø 1600 mm (rørbassiner og transportledninger)","meter",75,{"$f":"265.55*1.029616","v":273.41452880000003},297.74842186320001,"NT 0"]
["Strømpeforing ≤ Ø 200 mm","meter",50,{"$f":"246.84+2623.74","v":2870.58},3126.0616199999999,"NT 2,6k"]
["Strømpeforing Ø 200 mm < Ledningsnet ≤ Ø 500 mm","meter",50,{"$f":"794.26+573.35","v":1367.6100000000001},1489.3272900000002,"NT 0,6K"]
["Strømpeforing Ø 500 mm < Ledningsnet ≤ Ø 800 mm","meter",50,361.45,393.61904999999996,"NT 0,4k"]
["Strømpeforing Ø 800 mm < Ledningsnet ≤ Ø 1000 mm","meter",50,0,0]
["Strømpeforing Ø 1000 mm < Ledningsnet ≤ Ø 1200 mm","meter",50,0,0]
["Strømpeforing Ø 1200 mm < Ledningsnet ≤ Ø 1600 mm","meter",50,0,0]
["Ledningsnet - By"]
["Ledningsnet ≤ Ø 200 mm ","meter",75,{"$f":"(582787.57+43897+(D64*5))*1.029616","v":818389.83486512001},1099097.5482238561,"NT 43,9K"]
["Ø 200 mm < Ledningsnet ≤ Ø 500 mm ","meter",75,{"$f":"(321944.54+23693.39)*1.029616","v":355874.34293488},477939.24256154383,"NT 23,7K"]
["Ø 500 mm < Ledningsnet ≤ Ø 800 mm","meter",75,{"$f":"(71954.24+4922.4)*1.029616","v":79153.418570239999},106303.04113983232,"NT 4,9K"]
["Ø 800 mm < Ledningsnet ≤ Ø 1000 mm","meter",75,{"$f":"(14577.65+2378.63)*1.029616","v":17458.457188479999},23446.708004128639,"NT 2,4K"]
["Ø 1000 mm < Ledningsnet ≤ Ø 1200 mm","meter",75,{"$f":"(5256.28+358.8)*1.029616","v":5781.3762092800007},7764.3882490630403,"NT 0,4k"]
["Ø 1200 mm < Ledningsnet ≤ Ø 1600 mm","meter",75,{"$f":"(3499.28+852.49)*1.029616","v":4480.6520203200007},6017.5156632897606,"NT 0,9K"]
["Ledningsnet > Ø 1600 mm (rørbassiner og transportledninger)","meter",75,{"$f":"(337.17+362.14)*1.029616","v":720.02076495999995},966.98788734127993,"NT 0,4k"]
["Strømpeforing ≤ Ø 200 mm","meter",50,{"$f":"10585.22+7740.55","v":18325.77},24611.509109999999,"NT 7,7K"]
["Strømpeforing Ø 200 mm < Ledningsnet ≤ Ø 500 mm","meter",50,{"$f":"10907.53+5313.1","v":16220.630000000001},21784.306090000002,"NT 5,3k"]
["Strømpeforing Ø 500 mm < Ledningsnet ≤ Ø 800 mm","meter",50,{"$f":"805.6+2084.12","v":2889.72},3880.8939599999994,"NT 2,1K"]
["Strømpeforing Ø 800 mm < Ledningsnet ≤ Ø 1000 mm","meter",50,0,0]
["Strømpeforing Ø 1000 mm < Ledningsnet ≤ Ø 1200 mm","meter",50,0,0]
["Strømpeforing Ø 1200 mm < Ledningsnet ≤ Ø 1600 mm","meter",50,0,0]
["Ledningsnet - City"]
["Ledningsnet ≤ Ø 200 mm ","meter",75,{"$f":"(23827.87+12.31+(D67*5))*1.029616","v":36484.628290880006},36484.628290880006,"NT 0,01k"]
["Ø 200 mm < Ledningsnet ≤ Ø 500 mm ","meter",75,{"$f":"(32377.81+119.23)*1.029616","v":33459.472336640007},33459.472336640007,"NT 0,1K"]
["Ø 500 mm < Ledningsnet ≤ Ø 800 mm","meter",75,{"$f":"7710.58*1.029616","v":7938.9365372800003},7938.9365372800003,"NT 0"]
["Ø 800 mm < Ledningsnet ≤ Ø 1000 mm","meter",75,{"$f":"2160.48*1.029616","v":2224.46477568},2224.46477568,"NT 0"]
["Ø 1000 mm < Ledningsnet ≤ Ø 1200 mm","meter",75,{"$f":"1428.29*1.029616","v":1470.5902366400001},1470.5902366400001,"NT 0"]
["Ø 1200 mm < Ledningsnet ≤ Ø 1600 mm","meter",75,{"$f":"1616.2*1.029616","v":1664.0653792000003},1664.0653792000003,"NT 0"]
["Ledningsnet > Ø 1600 mm (rørbassiner og transportledninger)","meter",75,{"$f":"(610.17+225.75)*1.029616","v":860.67660672},860.67660672,"NT 0,2K"]
["Strømpeforing ≤ Ø 200 mm","meter",50,1249.6400000000001,1249.6400000000001,"NT 0"]
["Strømpeforing Ø 200 mm < Ledningsnet ≤ Ø 500 mm","meter",50,{"$f":"3808.09+295","v":4103.09},4103.09,"NT 0,3K"]
["Strømpeforing Ø 500 mm < Ledningsnet ≤ Ø 800 mm","meter",50,{"$f":"694.22+276.98","v":971.2},971.2,"NT 0,3K"]
["Strømpeforing Ø 800 mm < Ledningsnet ≤ Ø 1000 mm","meter",50,0,0]
["Strømpeforing Ø 1000 mm < Ledningsnet ≤ Ø 1200 mm","meter",50,0,0]
["Strømpeforing Ø 1200 mm < Ledningsnet ≤ Ø 1600 mm","meter",50,0,0]
["Ledningsnet - Indre city"]
["Ledningsnet ≤ Ø 200 mm ","meter",75,0,0]
["Ø 200 mm < Ledningsnet ≤ Ø 500 mm ","meter",75,0,0]
["Ø 500 mm < Ledningsnet ≤ Ø 800 mm","meter",75,0,0]
["Ø 800 mm < Ledningsnet ≤ Ø 1000 mm","meter",75,0,0]
["Ø 1000 mm < Ledningsnet ≤ Ø 1200 mm","meter",75,0,0]
["Ø 1200 mm < Ledningsnet ≤ Ø 1600 mm","meter",75,0,0]
["Ledningsnet > Ø 1600 mm (rørbassiner og transportledninger)","meter",75,0,0]
["Strømpeforing ≤ Ø 200 mm","meter",50,0,0]
["Strømpeforing Ø 200 mm < Ledningsnet ≤ Ø 500 mm","meter",50,0,0]
["Strømpeforing Ø 500 mm < Ledningsnet ≤ Ø 800 mm","meter",50,0,0]
["Strømpeforing Ø 800 mm < Ledningsnet ≤ Ø 1000 mm","meter",50,0,0]
["Strømpeforing Ø 1000 mm < Ledningsnet ≤ Ø 1200 mm","meter",50,0,0]
["Strømpeforing Ø 1200 mm < Ledningsnet ≤ Ø 1600 mm","meter",50,0,0]
["Brønde og stik, ledningsnet - Land"]
["Brønde","stk.",75,{"$f":"5943+54","v":5997},6530.7330000000002,"NT 54"]
["Stik","stk.",75,{"$f":"9048","v":9048},9853.271999999999,"NT 0"]
["Brønde og stik, ledningsnet - By"]
["Brønde","stk.",75,{"$f":"22090+1563","v":23653},31765.978999999999,"NT1563"]
["Stik","stk.",75,{"$f":"33633","v":33633},45169.118999999999]
["Brønde og stik, ledningsnet - City"]
["Brønde","stk.",75,{"$f":"1523+7","v":1530},{"$f":"+D66","v":1530},"NT 7"]
["Stik","stk.",75,{"$f":"2319","v":2319},{"$f":"+D67","v":2319},"NT 0"]
["Brønde og stik, ledningsnet - Indre city"]
["Brønde","stk.",75,0,0]
["Stik","stk.",75,0,0]
["Små pumpestationer inkl. SRO-anlæg - Land",null,null,null,0]
["Tryksatte minipumpestationer (husstandssystemer)","stk.",30,{"$f":"217+128","v":345},{"$f":"217+128+145","v":490},"NT 128"]
["Pumpestationer i brønde (< 6,25 m2), Konstruktioner","stk.",50,{"$f":"163+10","v":173},{"$f":"163+10","v":173},"NT 10"]
["Pumpestationer i brønde (< 6,25 m2), Mek/EL","stk.",20,{"$f":"163+10","v":173},{"$f":"163+10","v":173},"NT 10"]
["Pumpestationer i brønde (< 6,25 m2), SRO","stk.",10,{"$f":"141+10","v":151},{"$f":"141+10","v":151},"NT 10"]
["Pumpestationer m. overbygning (< 20 m2), Konstruktioner","stk.",50,8,8,"NT 0"]
["Pumpestationer m. overbygning (< 20 m2), Mek/EL","stk.",20,8,8,"NT 0"]
["Pumpestationer m. overbygning (< 20 m2), SRO","stk.",10,8,8,"NT 0"]
["Pumpestationer i underjordiske bygværker (<50 m2), Konstruktioner","stk.",50,0,0]
["Pumpestationer i underjordiske bygværker (<50 m2), Mek/El","stk.",20,0]
["Pumpestationer i underjordiske bygværker (<50 m2), SRO","stk.",10,0]
["Små pumpestationer inkl. SRO-anlæg - By"]
["Tryksatte minipumpestationer (husstandssystemer)","stk.",30,{"$f":"0+2","v":2},{"$f":"0+2","v":2},"NT 2"]
["Pumpestationer i brønde (< 6,25 m2), Konstruktioner","stk.",50,{"$f":"132+18","v":150},{"$f":"132+18+3","v":153},"NT 18"]
["Pumpestationer i brønde (< 6,25 m2), Mek/EL","stk.",20,{"$f":"133+18","v":151},{"$f":"133+18+3","v":154},"NT 18"]
["Pumpestationer i brønde (< 6,25 m2), SRO","stk.",10,{"$f":"129+18","v":147},{"$f":"129+18+3","v":150},"NT 18"]
["Pumpestationer m. overbygning (< 20 m2), Konstruktioner","stk.",50,2,2,"NT 0"]
["Pumpestationer m. overbygning (< 20 m2), Mek/EL","stk.",20,2,2,"NT 0"]
["Pumpestationer m. overbygning (< 20 m2), SRO","stk.",10,2,2,"NT 0"]
["Pumpestationer i underjordiske bygværker (<50 m2), Konstruktioner","stk.",50,0,0]
["Pumpestationer i underjordiske bygværker (<50 m2), Mek/El","stk.",20,0,0]
["Pumpestationer i underjordiske bygværker (<50 m2), SRO","stk.",10,0,0]
["Små pumpestationer inkl. SRO-anlæg - City"]
["Tryksatte minipumpestationer (husstandssystemer)","stk.",30,77,{"$f":"77+1","v":78},"NT 0"]
["Pumpestationer i brønde (< 6,25 m2), Konstruktioner","stk.",50,{"$f":"23+1","v":24},{"$f":"23+1+1","v":25},"NT 1"]
["Pumpestationer i brønde (< 6,25 m2), Mek/EL","stk.",20,{"$f":"23+1","v":24},{"$f":"23+1+1","v":25},"NT 1"]
["Pumpestationer i brønde (< 6,25 m2), SRO","stk.",10,{"$f":"23+1","v":24},25,"NT 1"]
["Pumpestationer m. overbygning (< 20 m2), Konstruktioner","stk.",50,{"$f":"4","v":4},{"$f":"4","v":4},"NT 0"]
["Pumpestationer m. overbygning (< 20 m2), Mek/EL","stk.",20,{"$f":"4","v":4},{"$f":"4","v":4},"NT 0"]
["Pumpestationer m. overbygning (< 20 m2), SRO","stk.",10,{"$f":"4","v":4},{"$f":"4","v":4},"NT 0"]
["Pumpestationer i underjordiske bygværker (<50 m2), Konstruktioner","stk.",50,0,0]
["Pumpestationer i underjordiske bygværker (<50 m2), Mek/El","stk.",20,0,0]
["Pumpestationer i underjordiske bygværker (<50 m2), SRO","stk.",10,0,0]
["Små pumpestationer inkl. SRO-anlæg - Indre city"]
["Tryksatte minipumpestationer (husstandssystemer)","stk.",30,0,0]
["Pumpestationer i brønde (< 6,25 m2), Konstruktioner","stk.",50,0,0]
["Pumpestationer i brønde (< 6,25 m2), Mek/EL","stk.",20,0,0]
["Pumpestationer i brønde (< 6,25 m2), SRO","stk.",10,0,0]
["Pumpestationer m. overbygning (< 20 m2), Konstruktioner","stk.",50,0,0]
["Pumpestationer m. overbygning (< 20 m2), Mek/EL","stk.",20,0,0]
["Pumpestationer m. overbygning (< 20 m2), SRO","stk.",10,0,0]
["Pumpestationer i underjordiske bygværker (<50 m2), Konstruktioner","stk.",50,0,0]
["Pumpestationer i underjordiske bygværker (<50 m2), Mek/El","stk.",20,0,0]
["Pumpestationer i underjordiske bygværker (<50 m2), SRO","stk.",10,0,0]
["Store pumpestationer: inkl. SRO-anlæg - Land"]
["Kælder","m2",75,0,0]
["Pumpeinstallation Miljøklasse A (100-300 l/s) - Mek/EL","stk.",20,0,3]
["Pumpeinstallation Miljøklasse A (100-300 l/s) - SRO","stk.",10,0,0]
["Pumpeinstallation Miljøklasse A (300-600 l/s) - Mek/EL","stk.",20,0,0]
["Pumpeinstallation Miljøklasse A (300-600 l/s) - SRO","stk.",10,0,0]
["Pumpeinstallation Miljøklasse A (600-1.000 l/s) - Mek/EL","stk.",20,0,0]
["Pumpeinstallation Miljøklasse A (600-1.000 l/s) - SRO","stk.",10,0,0]
["Pumpeinstallation Miljøklasse A (1.000-1.500 l/s) - Mek/EL","stk.",20,0,0]
["Pumpeinstallation Miljøklasse A (1.000-1.500 l/s) - SRO","stk.",10,0,0]
["Pumpeinstallation Miljøklasse B (100-300 l/s) - Mek/EL","stk.",20,0,0]
["Pumpeinstallation Miljøklasse B (100-300 l/s) - SRO","stk.",10,0,0]
["Pumpeinstallation Miljøklasse B (300-600 l/s) - Mek/EL","stk.",20,0,0]
["Pumpeinstallation Miljøklasse B (300-600 l/s) - SRO","stk.",10,0,0]
["Pumpeinstallation Miljøklasse B (600-1.000 l/s) - Mek/EL","stk.",20,0,0]
["Pumpeinstallation Miljøklasse B (600-1.000 l/s) - SRO","stk.",10,0,0]
["Pumpeinstallation Miljøklasse B (1.000-1.500 l/s) - Mek/EL","stk.",20,0,0]
["Pumpeinstallation Miljøklasse B (1.000-1.500 l/s) - SRO","stk.",10,0,0]
["Overbygning","m2",75,0,0]
["Store pumpestationer: inkl. SRO-anlæg - By"]
["Kælder","m2",75,40,{"$f":"40+1","v":41}]
["Pumpeinstallation Miljøklasse A (100-300 l/s) - Mek/EL","stk.",20,2,{"$f":"2+1","v":3}]
["Pumpeinstallation Miljøklasse A (100-300 l/s) - SRO","stk.",10,2,{"$f":"2+1","v":3}]
["Pumpeinstallation Miljøklasse A (300-600 l/s) - Mek/EL","stk.",20,0,0]
["Pumpeinstallation Miljøklasse A (300-600 l/s) - SRO","stk.",10,0,0]
["Pumpeinstallation Miljøklasse A (600-1.000 l/s) - Mek/EL","stk.",20,0,0]
["Pumpeinstallation Miljøklasse A (600-1.000 l/s) - SRO","stk.",10,0,0]
["Pumpeinstallation Miljøklasse A (1.000-1.500 l/s) - Mek/EL","stk.",20,0,0]
["Pumpeinstallation Miljøklasse A (1.000-1.500 l/s) - SRO","stk.",10,0,0]
["Pumpeinstallation Miljøklasse B (100-300 l/s) - Mek/EL","stk.",20,0,0]
["Pumpeinstallation Miljøklasse B (100-300 l/s) - SRO","stk.",10,0,0]
["Pumpeinstallation Miljøklasse B (300-600 l/s) - Mek/EL","stk.",20,0,0]
["Pumpeinstallation Miljøklasse B (300-600 l/s) - SRO","stk.",10,0,0]
["Pumpeinstallation Miljøklasse B (600-1.000 l/s) - Mek/EL","stk.",20,0,0]
["Pumpeinstallation Miljøklasse B (600-1.000 l/s) - SRO","stk.",10,0,0]
["Pumpeinstallation Miljøklasse B (1.000-1.500 l/s) - Mek/EL","stk.",20,0,0]
["Pumpeinstallation Miljøklasse B (1.000-1.500 l/s) - SRO","stk.",10,0,0]
["Overbygning ","m2",75,60,{"$f":"60+1","v":61}]
["Store pumpestationer: inkl. SRO-anlæg - City"]
["Kælder","m2",75,0,{"$f":"+D154","v":0}]
["Pumpeinstallation Miljøklasse A (100-300 l/s) - Mek/EL","stk.",20,4,{"$f":"+D155","v":4}]
["Pumpeinstallation Miljøklasse A (100-300 l/s) - SRO","stk.",10,4,4]
["Pumpeinstallation Miljøklasse A (300-600 l/s) - Mek/EL","stk.",20,0,0]
["Pumpeinstallation Miljøklasse A (300-600 l/s) - SRO","stk.",10,0,0]
["Pumpeinstallation Miljøklasse A (600-1.000 l/s) - Mek/EL","stk.",20,0,0]
["Pumpeinstallation Miljøklasse A (600-1.000 l/s) - SRO","stk.",10,0,0]
["Pumpeinstallation Miljøklasse A (1.000-1.500 l/s) - Mek/EL","stk.",20,0,0]
["Pumpeinstallation Miljøklasse A (1.000-1.500 l/s) - SRO","stk.",10,0,0]
["Pumpeinstallation Miljøklasse B (100-300 l/s) - Mek/EL","stk.",20,0,0]
["Pumpeinstallation Miljøklasse B (100-300 l/s) - SRO","stk.",10,0,0]
["Pumpeinstallation Miljøklasse B (300-600 l/s) - Mek/EL","stk.",20,0,0]
["Pumpeinstallation Miljøklasse B (300-600 l/s) - SRO","stk.",10,0,0]
["Pumpeinstallation Miljøklasse B (600-1.000 l/s) - Mek/EL","stk.",20,0,0]
["Pumpeinstallation Miljøklasse B (600-1.000 l/s) - SRO","stk.",10,0,0]
["Pumpeinstallation Miljøklasse B (1.000-1.500 l/s) - Mek/EL","stk.",20,0,0]
["Pumpeinstallation Miljøklasse B (1.000-1.500 l/s) - SRO","stk.",10,0,0]
["Overbygning ","m2",75,80,80]
["Store pumpestationer: inkl. SRO-anlæg - Indre city"]
["Kælder","m2",75,0,0]
["Pumpeinstallation Miljøklasse A (100-300 l/s) - Mek/EL","stk.",20,0,0]
["Pumpeinstallation Miljøklasse A (100-300 l/s) - SRO","stk.",10,0,0]
["Pumpeinstallation Miljøklasse A (300-600 l/s) - Mek/EL","stk.",20,0,0]
["Pumpeinstallation Miljøklasse A (300-600 l/s) - SRO","stk.",10,0,0]
["Pumpeinstallation Miljøklasse A (600-1.000 l/s) - Mek/EL","stk.",20,0,0]
["Pumpeinstallation Miljøklasse A (600-1.000 l/s) - SRO","stk.",10,0,0]
["Pumpeinstallation Miljøklasse A (1.000-1.500 l/s) - Mek/EL","stk.",20,0,0]
["Pumpeinstallation Miljøklasse A (1.000-1.500 l/s) - SRO","stk.",10,0,0]
["Pumpeinstallation Miljøklasse B (100-300 l/s) - Mek/EL","stk.",20,0,0]
["Pumpeinstallation Miljøklasse B (100-300 l/s) - SRO","stk.",10,0,0]
["Pumpeinstallation Miljøklasse B (300-600 l/s) - Mek/EL","stk.",20,0,0]
["Pumpeinstallation Miljøklasse B (300-600 l/s) - SRO","stk.",10,0,0]
["Pumpeinstallation Miljøklasse B (600-1.000 l/s) - Mek/EL","stk.",20,0,0]
["Pumpeinstallation Miljøklasse B (600-1.000 l/s) - SRO","stk.",10,0,0]
["Pumpeinstallation Miljøklasse B (1.000-1.500 l/s) - Mek/EL","stk.",20,0,0]
["Pumpeinstallation Miljøklasse B (1.000-1.500 l/s) - SRO","stk.",10,0,0]
["Overbygning","m2",75,0,0]
["Overløbsbygværker - Land"]
["Kælder (< 7 m2) ","stk.",75,42,{"$f":"+D192","v":42}]
["Kælder (7 - 20 m2) ","m2",75,405,{"$f":"+D193","v":405}]
["Kælder (20 - 30 m2)","m2",75,0,0]
["Installationer \"ingen eller faste riste\" (mindre end 7 m2)","stk.",20,42,42]
["Installationer \"mekaniske riste og SRO\" Miljøklasse A. (7-20 m2) - Mek/EL","stk.",20,0,0]
["Installationer \"mekaniske riste og SRO\" Miljøklasse A. (7-20 m2) - SRO","stk.",10,0,0]
["Installationer \"mekaniske riste og SRO\" Miljøklasse A. (20-30 m2) - Mek/EL","stk.",20,0,0]
["Installationer \"mekaniske riste og SRO\" Miljøklasse A. (20-30 m2) - SRO","stk.",10,2,2]
["Installationer \"mekaniske riste og SRO\" Miljøklasse B. (7-20 m2) - Mek/EL","stk.",20,30,30]
["Installationer \"mekaniske riste og SRO\" Miljøklasse B. (7-20 m2) - SRO","stk.",10,28,28]
["Installationer \"mekaniske riste og SRO\" Miljøklasse B. (20-30 m2) - Mek/EL","stk.",20,0,0]
["Installationer \"mekaniske riste og SRO\" Miljøklasse B. (20-30 m2) - SRO","stk.",10,0,0]
["Overbygning","stk.",75,0,0]
["Overløbsbygværker - By"]
["Kælder (< 7 m2) ","stk.",75,28,{"$f":"+D206","v":28}]
["Kælder (7 - 20 m2) ","m2",75,60,{"$f":"+D207","v":60}]
["Kælder (20 - 30 m2)","m2",75,0,0]
["Installationer \"ingen eller faste riste\" (mindre end 7 m2)","stk.",20,28,28]
["Installationer \"mekaniske riste og SRO\" Miljøklasse A. (7-20 m2) - Mek/EL","stk.",20,3,3]
["Installationer \"mekaniske riste og SRO\" Miljøklasse A. (7-20 m2) - SRO","stk.",10,0,0]
["Installationer \"mekaniske riste og SRO\" Miljøklasse A. (20-30 m2) - Mek/EL","stk.",20,0,0]
["Installationer \"mekaniske riste og SRO\" Miljøklasse A. (20-30 m2) - SRO","stk.",10,0,0]
["Installationer \"mekaniske riste og SRO\" Miljøklasse B. (7-20 m2) - Mek/EL","stk.",20,6,6]
["Installationer \"mekaniske riste og SRO\" Miljøklasse B. (7-20 m2) - SRO","stk.",10,6,6]
["Installationer \"mekaniske riste og SRO\" Miljøklasse B. (20-30 m2) - Mek/EL","stk.",20,0,0]
["Installationer \"mekaniske riste og SRO\" Miljøklasse B. (20-30 m2) - SRO","stk.",10,0,0]
["Overbygning","stk.",75,0,0]
["Overløbsbygværker - City"]
["Kælder (< 7 m2) ","stk.",75,18,{"$f":"+D220","v":18}]
["Kælder (7 - 20 m2) ","m2",75,660,{"$f":"+D221","v":660}]
["Kælder (20 - 30 m2)","m2",75,0,0]
["Installationer \"ingen eller faste riste\" (mindre end 7 m2)","stk.",20,19,19]
["Installationer \"mekaniske riste og SRO\" Miljøklasse A. (7-20 m2) - Mek/EL","stk.",20,0,0]
["Installationer \"mekaniske riste og SRO\" Miljøklasse A. (7-20 m2) - SRO","stk.",10,0,0]
["Installationer \"mekaniske riste og SRO\" Miljøklasse A. (20-30 m2) - Mek/EL","stk.",20,0,0]
["Installationer \"mekaniske riste og SRO\" Miljøklasse A. (20-30 m2) - SRO","stk.",10,0,0]
["Installationer \"mekaniske riste og SRO\" Miljøklasse B. (7-20 m2) - Mek/EL","stk.",20,43,43]
["Installationer \"mekaniske riste og SRO\" Miljøklasse B. (7-20 m2) - SRO","stk.",10,45,45]
["Installationer \"mekaniske riste og SRO\" Miljøklasse B. (20-30 m2) - Mek/EL","stk.",20,1,1]
["Installationer \"mekaniske riste og SRO\" Miljøklasse B. (20-30 m2) - SRO","stk.",10,0,0]
["Overbygning (efter beliggenhed) ","stk.",75,0,0]
["Overløbsbygværker - Indre city"]
["Kælder (< 7 m2) ","stk.",75,0,0]
["Kælder (7 - 20 m2) ","m2",75,0,0]
["Kælder (20 - 30 m2)","m2",75,0,0]
["Installationer \"ingen eller faste riste\" (mindre end 7 m2)","stk.",20,0,0]
["Installationer \"mekaniske riste og SRO\" Miljøklasse A. (7-20 m2) - Mek/EL","stk.",20,0,0]
["Installationer \"mekaniske riste og SRO\" Miljøklasse A. (7-20 m2) - SRO","stk.",10,0,0]
["Installationer \"mekaniske riste og SRO\" Miljøklasse A. (20-30 m2) - Mek/EL","stk.",20,0,0]
["Installationer \"mekaniske riste og SRO\" Miljøklasse A. (20-30 m2) - SRO","stk.",10,0,0]
["Installationer \"mekaniske riste og SRO\" Miljøklasse B. (7-20 m2) - Mek/EL","stk.",20,0,0]
["Installationer \"mekaniske riste og SRO\" Miljøklasse B. (7-20 m2) - SRO","stk.",10,0,0]
["Installationer \"mekaniske riste og SRO\" Miljøklasse B. (20-30 m2) - Mek/EL","stk.",20,0,0]
["Installationer \"mekaniske riste og SRO\" Miljøklasse B. (20-30 m2) - SRO","stk.",10,0,0]
["Overbygning","stk.",75,0,0]
["Forsinkelsesbassiner - Land"]
["Forsinkelsesbassiner, lukkede uden automatisk rensning og SRO Miljøklasse B (mindre end 1.000 m3)","m³",50,{"$f":"466+100","v":566},{"$f":"466+100","v":566},"NT 100"]
["Forsinkelsesbassiner, lukkede med automatisk rensning og SRO Miljøklasse A (500-1.000 m3) - Konstruktioner","m³",75,{"$f":"3596+600","v":4196},4196,"NT 600"]
["Forsinkelsesbassiner, lukkede med automatisk rensning og SRO Miljøklasse A (500-1.000 m3) - Mek/EL","m³",20,4196,4196,"NT 600"]
["Forsinkelsesbassiner, lukkede med automatisk rensning og SRO Miljøklasse A (500-1.000 m3) - SRO ","m³",10,4196,4196,"NT 600"]
["Forsinkelsesbassiner, lukkede med automatisk rensning og SRO Miljøklasse A (1.000-3.000 m3) - Konstruktioner","m³",75,{"$f":"1640+1400","v":3040},3040,"NT 1400"]
["Forsinkelsesbassiner, lukkede med automatisk rensning og SRO Miljøklasse A (1.000-3.000 m3) - Mek/EL","m³",20,3040,3040,"NT 1400"]
["Forsinkelsesbassiner, lukkede med automatisk rensning og SRO Miljøklasse A (1.000-3.000 m3) - SRO","m³",10,3040,3040,"NT 1400"]
["Forsinkelsesbassiner, lukkede med automatisk rensning og SRO Miljøklasse A (5.000-10.000 m3) - Konstruktionre","m³",75,0,0]
["Forsinkelsesbassiner, lukkede med automatisk rensning og SRO Miljøklasse A (5.000-10.000 m3) - Mek/EL","m³",20,0,0]
["Forsinkelsesbassiner, lukkede med automatisk rensning og SRO Miljøklasse A (5.000-10.000 m3) - SRO","m³",10,0,0]
["Forsinkelsesbassiner, lukkede med automatisk rensning og SRO Miljøklasse A (større end 10.000 m3) - Konstruktioner","m³",75,0,0]
["Forsinkelsesbassiner, lukkede med automatisk rensning og SRO Miljøklasse A (større end 10.000 m3) - Mek/EL","m³",20,0,0]
["Forsinkelsesbassiner, lukkede med automatisk rensning og SRO Miljøklasse A (større end 10.000 m3) - SRO","m³",10,0,0]
["Forsinkelsesbassiner - By"]
["Forsinkelsesbassiner, lukkede uden automatisk rensning og SRO Miljøklasse B (mindre end 1.000 m3)","m³",50,{"$f":"2891+300","v":3191},{"$f":"2891+300","v":3191},"NT 300"]
["Forsinkelsesbassiner, lukkede med automatisk rensning og SRO Miljøklasse A (500-1.000 m3) - Konstruktioner","m³",75,{"$f":"3273+750","v":4023},{"$f":"3273+750","v":4023},"NT 750"]
["Forsinkelsesbassiner, lukkede med automatisk rensning og SRO Miljøklasse A (500-1.000 m3) - Mek/EL","m³",20,{"$f":"5618-2485+750","v":3883},{"$f":"5618-2485+750","v":3883},"NT 750"]
["Forsinkelsesbassiner, lukkede med automatisk rensning og SRO Miljøklasse A (500-1.000 m3) - SRO ","m³",10,{"$f":"5618-2485+750","v":3883},{"$f":"5618-2485+750","v":3883},"NT 750"]
["Forsinkelsesbassiner, lukkede med automatisk rensning og SRO Miljøklasse A (1.000-3.000 m3) - Konstruktioner","m³",75,{"$f":"3535+1084","v":4619},{"$f":"3535+1084","v":4619},"NT 1084"]
["Forsinkelsesbassiner, lukkede med automatisk rensning og SRO Miljøklasse A (1.000-3.000 m3) - Mek/EL","m³",20,{"$f":"1050+2485+1084","v":4619},{"$f":"1050+2485+1084","v":4619},"NT 1084"]
["Forsinkelsesbassiner, lukkede med automatisk rensning og SRO Miljøklasse A (1.000-3.000 m3) - SRO","m³",10,{"$f":"1050+2485","v":3535},{"$f":"1050+2485","v":3535}]
["Forsinkelsesbassiner, lukkede med automatisk rensning og SRO Miljøklasse A (5.000-10.000 m3) - Konstruktionre","m³",75,0,0]
["Forsinkelsesbassiner, lukkede med automatisk rensning og SRO Miljøklasse A (5.000-10.000 m3) - Mek/EL","m³",20,0,0]
["Forsinkelsesbassiner, lukkede med automatisk rensning og SRO Miljøklasse A (5.000-10.000 m3) - SRO","m³",10,0,0]
["Forsinkelsesbassiner, lukkede med automatisk rensning og SRO Miljøklasse A (større end 10.000 m3) - Konstruktioner","m³",75,0,0]
["Forsinkelsesbassiner, lukkede med automatisk rensning og SRO Miljøklasse A (større end 10.000 m3) - Mek/EL","m³",20,0,0]
["Forsinkelsesbassiner, lukkede med automatisk rensning og SRO Miljøklasse A (større end 10.000 m3) - SRO","m³",10,0,0]
["Forsinkelsesbassiner - City"]
["Forsinkelsesbassiner, lukkede uden automatisk rensning og SRO Miljøklasse B (mindre end 1.000 m3)","m³",50,1417,1417]
["Forsinkelsesbassiner, lukkede med automatisk rensning og SRO Miljøklasse A (500-1.000 m3) - Konstruktioner","m³",75,6486,6486]
["Forsinkelsesbassiner, lukkede med automatisk rensning og SRO Miljøklasse A (500-1.000 m3) - Mek/EL","m³",20,6486,6486]
["Forsinkelsesbassiner, lukkede med automatisk rensning og SRO Miljøklasse A (500-1.000 m3) - SRO ","m³",10,6486,6486]
["Forsinkelsesbassiner, lukkede med automatisk rensning og SRO Miljøklasse A (1.000-3.000 m3) - Konstruktioner","m³",75,0,0]
["Forsinkelsesbassiner, lukkede med automatisk rensning og SRO Miljøklasse A (1.000-3.000 m3) - Mek/EL","m³",20,0,0]
["Forsinkelsesbassiner, lukkede med automatisk rensning og SRO Miljøklasse A (1.000-3.000 m3) - SRO","m³",10,0,0]
["Forsinkelsesbassiner, lukkede med automatisk rensning og SRO Miljøklasse A (5.000-10.000 m3) - Konstruktionre","m³",75,0,0]
["Forsinkelsesbassiner, lukkede med automatisk rensning og SRO Miljøklasse A (5.000-10.000 m3) - Mek/EL","m³",20,0,0]
["Forsinkelsesbassiner, lukkede med automatisk rensning og SRO Miljøklasse A (5.000-10.000 m3) - SRO","m³",10,0,0]
["Forsinkelsesbassiner, lukkede med automatisk rensning og SRO Miljøklasse A (større end 10.000 m3) - Konstruktioner","m³",75,0,0]
["Forsinkelsesbassiner, lukkede med automatisk rensning og SRO Miljøklasse A (større end 10.000 m3) - Mek/EL","m³",20,0,0]
["Forsinkelsesbassiner, lukkede med automatisk rensning og SRO Miljøklasse A (større end 10.000 m3) - SRO","m³",10,0,0]
["Forsinkelsesbassiner - Indre city"]
["Forsinkelsesbassiner, lukkede uden automatisk rensning og SRO Miljøklasse B (mindre end 1.000 m3)","m³",50,0,0]
["Forsinkelsesbassiner, lukkede med automatisk rensning og SRO Miljøklasse A (500-1.000 m3) - Konstruktioner","m³",75,0,0]
["Forsinkelsesbassiner, lukkede med automatisk rensning og SRO Miljøklasse A (500-1.000 m3) - Mek/EL","m³",20,0,0]
["Forsinkelsesbassiner, lukkede med automatisk rensning og SRO Miljøklasse A (500-1.000 m3) - SRO ","m³",10,0,0]
["Forsinkelsesbassiner, lukkede med automatisk rensning og SRO Miljøklasse A (1.000-3.000 m3) - Konstruktioner","m³",75,0,0]
["Forsinkelsesbassiner, lukkede med automatisk rensning og SRO Miljøklasse A (1.000-3.000 m3) - Mek/EL","m³",20,0,0]
["Forsinkelsesbassiner, lukkede med automatisk rensning og SRO Miljøklasse A (1.000-3.000 m3) - SRO","m³",10,0,0]
["Forsinkelsesbassiner, lukkede med automatisk rensning og SRO Miljøklasse A (5.000-10.000 m3) - Konstruktionre","m³",75,0,0]
["Forsinkelsesbassiner, lukkede med automatisk rensning og SRO Miljøklasse A (5.000-10.000 m3) - Mek/EL","m³",20,0,0]
["Forsinkelsesbassiner, lukkede med automatisk rensning og SRO Miljøklasse A (5.000-10.000 m3) - SRO","m³",10,0,0]
["Forsinkelsesbassiner, lukkede med automatisk rensning og SRO Miljøklasse A (større end 10.000 m3) - Konstruktioner","m³",75,0,0]
["Forsinkelsesbassiner, lukkede med automatisk rensning og SRO Miljøklasse A (større end 10.000 m3) - Mek/EL","m³",20,0,0]
["Forsinkelsesbassiner, lukkede med automatisk rensning og SRO Miljøklasse A (større end 10.000 m3) - SRO","m³",10,0,0]
["Sparebassin/laguner - Land"]
["Jordbassin Klasse B","m³",50,76355,76355]
["Jordbassin Klasse A","m³",50,{"$f":"9186+1250","v":10436},{"$f":"9186+1250","v":10436},"NT 1250"]
["Indløb-/udløbsarrangement","stk.",75,61,61]
["Andre bygninger (tekniske installationer, målere mv.)","m2",75,0,0]
["Sparebassin/laguner - By"]
["Jordbassin Klasse B","m³",50,{"$f":"165898-510","v":165388},{"$f":"165898-510+600","v":165988},"NT -510"]
["Jordbassin Klasse A","m³",50,{"$f":"50562+103251","v":153813},{"$f":"50562+103251","v":153813},"NT 103251"]
["Indløb-/udløbsarrangement","stk.",75,86,86]
["Andre bygninger (tekniske installationer, målere mv.)","m2",75,0,0]
["Sparebassin/laguner - City"]
["Jordbassin Klasse B","m³",50,1417,1417]
["Jordbassin Klasse A","m³",50,0,0]
["Indløb-/udløbsarrangement","stk.",75,0,0]
["Andre bygninger (tekniske installationer, målere mv.)","m2",75,0,0]
["Sparebassin/laguner  - Indre city"]
["Jordbassin Klasse B","m³",50,0,0]
["Jordbassin Klasse A","m³",50,0,0]
["Indløb-/udløbsarrangement","stk.",75,0,0]
["Andre bygninger (tekniske installationer, målere mv.)","m2",75,0,0]

{"sheet":"Fællesfunktionsanlæg","index":2,"n_rows":16,"n_cols":6,"rows_kept":16,"cut":false,"hidden":false,"merged":[[0,5,1,5],[0,0,1,0],[0,1,1,1],[0,2,1,2],[0,3,1,3],[0,4,1,4]]}
["Fællesfunktionsanlæg","Enhed","Standard-levetid","Samlet mængde per 31/12-2014","Samlet mængde per 31/12-2015","Bemærk-ninger"]
[]
[]
["Andre"]
["Administrationbygninger","m2",75,{"$f":"1354+1270+95","v":2719},{"$f":"1354+1270+95","v":2719},"NT 1270"]
["Arbejdsplads og kontor","stk.",5,40,45]
["Køretøjer, personbil","stk.",5,{"$f":"3+2-2","v":3},2,"NT 2"]
["Køretøjer, små lastvogne (< 3.500 kg.)","stk.",5,{"$f":"12+5","v":17},17]
["Køretøjer, store lastvogne (> 3.500 kg.)","stk.",5,{"$f":"1-1","v":0},0,"NT-1"]
["Køretøjer, entreprenørmaskiner","stk.",5,0,0]
["Slamsugere","stk.",5,0,0]
["Værksteder, garager","m2",75,{"$f":"1127+800+40","v":1967},{"$f":"1127+800+40","v":1967},"NT 840"]
["Øvrige"]
["Solcelleanlæg","KWh",25,{"$f":"50+50+18","v":118},{"$f":"50+50+18","v":118},"NT 118"]
["EDB, tablets og navigationsudstyr","stk.",5,40,45]
["Elektroniske kort","stk.",5,1,1,"NT 1"]

{"sheet":"Drop downliste","index":3,"n_rows":13,"n_cols":11,"rows_kept":13,"cut":false,"hidden":true,"merged":[]}
[]
[null,"datakvalitet","Serviceselskab","Overheads","Infrastrukturomlægninger","Infrastruktur per år","år 1","år 2","år 3","år 4","år 5"]
[null,null,null,null,null,null,2010,2011,2012,2013,2014]
[null,1,"ja","Full-cost","ja",0.1]
[null,2,"nej","Direct-cost","nej",0.2]
[null,3,null,"Nøgletalsfordeling",null,0.3]
[null,null,null,"Activity based cost",null,0.4]
[null,null,null,"Andet",null,0.5]
[null,null,null,null,null,0.6]
[null,null,null,null,null,0.7]
[null,null,null,null,null,0.8]
[null,null,null,null,null,0.9]
[null,null,null,null,null,1]